bitfinex/quotes_ETHUSD_20250807
["timestamp","ask_amount","ask_price","bid_price","bid_amount"]
[1754532220987,0.92970001,3672.2,3672.1,2.72523738]
[1754532221287,0.92970001,3672.2,3672.1,7.03723738]
[1754532223603,0.92970001,3672.2,3672.1,2.72523738]
[1754532223809,0.92970001,3672.2,3672.1,7.03623738]
[1754532224499,0.43860001,3672.2,3672.1,7.03623738]
[1754532224712,0.92970001,3672.2,3672.1,4.313]
[1754532225033,0.92970001,3672.2,3672.1,0.002]
[1754532225203,0.92970001,3672.2,3672.1,4.313]
[1754532225938,0.92970001,3672.2,3672.1,7.03623738]
[1754532226237,1e-08,3672.2,3672.1,7.03623738]
[1754532226437,0.92970001,3672.2,3672.1,2.72523738]
[1754532226743,0.92970001,3672.2,3672.1,7.03623738]
[1754532226891,0.92970001,3672.2,3672.1,2.72523738]
[1754532227090,0.43860001,3672.2,3672.1,7.03623738]
[1754532228122,1e-08,3672.2,3672.1,8.01219863]
[1754532228427,0.43860001,3672.2,3672.1,7.03623738]
[1754532228630,0.92970001,3672.2,3672.1,0.002]
[1754532228826,0.92970001,3672.2,3672.1,4.313]
[1754532230918,0.92970001,3672.2,3672.1,4.449]
[1754532232402,0.92970001,3672.2,3672.1,7.17223738]
[1754532232603,0.92970001,3672.2,3672.1,4.449]
[1754532232798,0.43860001,3672.2,3672.1,4.449]
[1754532233118,0.93730001,3672.2,3672.1,4.449]
[1754532233320,0.93730001,3672.2,3672.1,7.17223738]
[1754532233899,1e-08,3672.2,3672.1,8.16179847]
[1754532234596,0.93490001,3672.2,3672.1,0.138]
[1754532234802,0.93490001,3672.2,3672.1,4.449]
[1754532237412,1e-08,3672.2,3672.1,4.449]
[1754532237638,1e-08,3672.2,3672.1,7.17223738]
[1754532237942,1e-08,3672.2,3672.1,4.449]
[1754532237943,0.43620001,3672.2,3672.1,4.449]
[1754532238550,1e-08,3672.2,3672.1,7.88946842]
[1754532241356,1e-08,3672.2,3672.1,11.34106842]
[1754532241515,1e-08,3672.2,3672.1,12.03756842]
[1754532241845,1e-08,3672.2,3672.1,11.45015542]
[1754532242038,1e-08,3672.2,3672.1,10.88846842]
[1754532242279,1e-08,3672.2,3672.1,7.88846842]
[1754532243033,1e-08,3672.2,3672.1,12.03656842]
[1754532246356,1e-08,3672.2,3672.1,11.89006842]
[1754532246952,1e-08,3672.2,3672.1,6.57846842]
[1754532247153,1e-08,3672.2,3672.1,10.88746842]
[1754532247360,1e-08,3672.2,3672.1,11.33906842]
[1754532247555,1e-08,3672.2,3672.1,10.88746842]
[1754532247934,0.43620001,3672.2,3672.1,10.88746842]
[1754532248265,0.93490001,3672.2,3672.1,7.88746842]
[1754532248965,0.43620001,3672.2,3672.1,7.88746842]
[1754532249672,1e-08,3672.2,3672.1,7.88746842]
[1754532249871,1e-08,3672.2,3672.1,18.30896091]
[1754532250058,1e-08,3672.2,3672.1,7.88746842]
[1754532250570,1e-08,3672.2,3672.1,11.33906842]
[1754532250739,1e-08,3672.2,3672.1,10.88746842]
[1754532251144,1e-08,3672.2,3672.1,11.33906842]
[1754532251748,1e-08,3672.2,3672.1,10.88746842]
[1754532252950,1e-08,3672.2,3672.1,11.33906842]
[1754532254145,1e-08,3672.2,3672.1,10.88746842]
[1754532254542,0.93490001,3672.2,3672.1,7.88646842]
[1754532255353,1e-08,3672.2,3672.1,7.88646842]
[1754532255553,1e-08,3672.2,3672.1,21.75956091]
[1754532255863,1e-08,3672.2,3672.1,16.99996091]
[1754532256181,1e-08,3672.2,3672.1,7.88646842]
[1754532257057,1e-08,3672.2,3672.1,8.33806842]
[1754532257675,1e-08,3672.2,3672.1,22.30956091]
[1754532258845,1e-08,3672.2,3672.1,11.54556142]
[1754532259965,1e-08,3672.2,3672.1,12.00016142]
[1754532261948,1e-08,3672.2,3672.1,22.42165391]
[1754532267446,1e-08,3672.2,3672.1,12.00016142]
[1754532267642,1e-08,3672.2,3672.1,22.42165391]
[1754532269954,1e-08,3672.2,3672.1,11.54556142]
[1754532270174,1e-08,3672.2,3672.1,7.23756142]
[1754532270486,0.94800001,3672.2,3672.1,7.23756142]
[1754532270657,0.94800001,3672.2,3672.1,11.54256142]
[1754532271381,0.001,3672.6,3672.5,2.72294077]
[1754532271558,0.001,3672.6,3672.5,7.57253841]
[1754532271762,0.949,3672.6,3672.5,7.57253841]
[1754532272081,0.001,3672.6,3672.5,7.57253841]
[1754532272313,0.001,3672.6,3672.5,18.5440309]
[1754532272484,0.001,3672.6,3672.5,8.25853841]
[1754532272983,0.949,3672.6,3672.5,8.25853841]
[1754532274051,0.949,3672.6,3672.5,7.70753841]
[1754532275148,0.001,3672.6,3672.5,7.70753841]
[1754532275760,0.001,3672.6,3672.5,3.40353841]
[1754532275964,0.949,3672.6,3672.5,7.70753841]
[1754532276392,0.001,3672.6,3672.5,7.70753841]
[1754532276594,0.001,3673.0,3672.9,2.72264423]
[1754532276823,0.001,3673.4,3673.2,2.72242186]
[1754532277027,0.001,3673.4,3673.2,17.61113856]
[1754532277316,1e-08,3673.4,3673.3,3.27234775]
[1754532277613,0.001,3674.4,3674.0,3.27182906]
[1754532277768,0.001,3674.4,3674.0,18.02353984]
[1754532278111,0.001,3674.4,3674.0,17.99632155]
[1754532278404,0.001,3674.4,3674.0,18.13232155]
[1754532278598,0.4908,3674.1,3674.0,7.16082906]
[1754532279106,0.001,3674.1,3674.0,7.16082906]
[1754532279305,0.001,3674.4,3674.3,2.72160683]
[1754532279491,0.001,3674.4,3674.3,7.02460683]
[1754532279699,0.001,3674.4,3674.3,7.16060683]
[1754532279875,0.001,3674.4,3674.3,0.136]
[1754532279876,0.4908,3674.4,3674.3,0.136]
[1754532280077,0.949,3674.4,3674.3,4.439]
[1754532280276,0.949,3674.4,3674.3,0.136]
[1754532280596,0.949,3674.4,3674.3,4.439]
[1754532280776,0.949,3674.4,3673.3,3.0]
[1754532280974,0.949,3674.4,3674.0,0.136]
[1754532280975,0.948,3674.3,3674.0,0.136]
[1754532281298,0.948,3674.3,3674.1,4.302]
[1754532281608,0.948,3674.2,3674.1,4.302]
[1754532283325,0.55,3674.0,3672.1,0.111093]
[1754532283477,10.42149249,3672.2,3672.1,0.002]
[1754532283928,0.948,3672.2,3672.1,0.002]
[1754532292736,0.4642,3672.5,3672.1,0.002]
[1754532293115,0.4642,3672.2,3672.1,0.002]
[1754532293630,0.9307,3672.2,3672.1,0.138]
[1754532294341,0.4642,3672.2,3672.1,0.138]
[1754532294527,0.9307,3672.2,3672.1,0.138]
[1754532299538,0.4642,3672.4,3672.1,0.138]
[1754532299740,2.72388563,3672.6,3672.1,0.138]
[1754532299741,0.4642,3672.3,3672.1,0.138]
[1754532300047,0.9307,3672.3,3672.1,0.138]
[1754532300247,0.9307,3672.2,3672.1,0.138]
[1754532305611,4.01923027,3672.2,3672.1,0.002]
[1754532305931,11.45623027,3672.2,3672.1,0.002]
[1754532308531,11.70809692,3672.2,3672.1,0.002]
[1754532308719,22.13979022,3672.2,3672.1,0.002]
[1754532311752,22.14040702,3672.2,3672.1,0.002]
[1754532312528,2.7237566,3671.4,3671.3,0.002]
[1754532312723,20.45545019,3671.4,3671.3,0.002]
[1754532312918,21.38615019,3671.4,3671.3,0.002]
[1754532313518,21.6391024,3671.4,3671.3,0.002]
[1754532314668,4.18365221,3671.4,3671.3,0.002]
[1754532314819,4.3,3671.4,3671.3,0.002]
[1754532315218,4.55284013,3671.4,3671.3,0.002]
[1754532315621,4.55284013,3671.4,3671.3,2.72583079]
[1754532315622,0.25284013,3671.4,3671.3,2.72583079]
[1754532315965,4.3,3671.4,3671.3,0.002]
[1754532316824,4.55269874,3671.4,3671.3,0.002]
[1754532317521,4.3,3671.4,3671.3,0.002]
[1754532318555,3.0,3672.0,3671.3,0.4983]
[1754532318757,4.3,3671.9,3671.4,2.72369315]
[1754532319063,4.3,3671.9,3671.5,3.21998181]
[1754532319423,4.3,3671.9,3671.5,0.4963]
[1754532319951,5.2357,3671.9,3671.3,0.002]
[1754532320259,7.95909311,3671.9,3671.3,0.002]
[1754532320448,0.4778,3671.8,3671.3,0.002]
[1754532321024,0.4778,3671.7,3671.3,0.002]
[1754532321525,4.299,3671.7,3671.3,0.4849]
[1754532321920,4.299,3671.7,3671.3,0.002]
[1754532322123,4.7768,3671.7,3671.3,0.002]
[1754532322525,4.7768,3671.7,3671.4,0.136]
[1754532323823,5.2347,3671.7,3671.4,0.136]
[1754532324460,7.95824645,3671.7,3671.4,0.136]
[1754532324626,5.2347,3671.7,3671.4,0.136]
[1754532324828,4.7768,3671.7,3671.4,0.136]
[1754532325426,0.4778,3671.7,3671.4,0.136]
[1754532325629,0.001,3672.6,3671.5,0.9557]
[1754532325869,0.001,3672.6,3671.3,0.002]
[1754532325870,0.136,3672.5,3672.0,0.136]
[1754532326031,4.434,3672.5,3672.0,0.136]
[1754532326365,0.001,3672.6,3672.1,0.4829]
[1754532326559,4.298,3672.4,3672.1,0.4829]
[1754532327068,0.001,3672.6,3672.1,0.4829]
[1754532327069,4.298,3672.5,3672.1,0.4829]
[1754532327627,4.299,3672.6,3672.1,3.20612465]
[1754532327939,0.001,3672.6,3672.3,0.136]
[1754532328135,0.4788,3672.6,3672.3,0.136]
[1754532328846,0.001,3672.6,3672.3,0.136]
[1754532329167,0.001,3672.6,3672.4,0.9557]
[1754532329467,0.001,3672.6,3672.5,0.136]
[1754532333046,2.72386663,3672.6,3672.5,0.136]
[1754532333247,1.73235666,3672.6,3671.3,5.2658]
[1754532333474,2.72342419,3671.9,3671.8,0.136]
[1754532333773,2.72358939,3671.7,3671.5,0.136]
[1754532334172,2.7235434,3671.7,3671.3,4.3]
[1754532334375,3.2014743,3671.6,3671.4,0.136]
[1754532335560,2.7236743,3671.6,3671.4,0.136]
[1754532336374,2.72368241,3671.5,3671.4,0.136]
[1754532336674,3.20141784,3671.6,3671.4,0.136]
[1754532337488,2.72361784,3671.6,3671.4,0.136]
[1754532337783,3.20148241,3671.5,3671.4,0.136]
[1754532338593,3.20148241,3671.5,3671.3,0.138]
[1754532338780,0.4778,3671.5,3671.3,0.138]
[1754532338993,3.18152527,3671.6,3671.3,0.138]
[1754532338994,2.72362527,3671.6,3671.3,0.138]
[1754532339364,2.72354115,3671.7,3671.3,0.138]
[1754532339749,3.20134115,3671.7,3671.3,0.138]
[1754532339973,2.72354904,3671.7,3671.3,0.6209]
[1754532341405,2.72362191,3671.6,3671.3,0.138]
[1754532341702,3.2013522,3671.7,3671.3,0.138]
[1754532341902,2.85947862,3671.8,3671.3,0.6209]
[1754532342107,2.72347862,3671.8,3671.5,0.136]
[1754532342711,3.20127862,3671.8,3671.5,0.136]
[1754532343397,2.72354049,3671.7,3671.5,0.136]
[1754532344098,3.20134049,3671.7,3671.5,0.136]
[1754532344498,3.65924049,3671.7,3671.5,0.136]
[1754532344805,0.4778,3671.6,3671.5,0.136]
[1754532345206,2.72354049,3671.7,3671.5,0.136]
[1754532345613,3.20134049,3671.7,3671.5,0.136]
[1754532346580,0.4778,3671.7,3671.5,0.136]
[1754532347111,2.72347941,3671.8,3671.5,0.136]
[1754532347420,2.72354557,3671.7,3671.5,0.136]
[1754532348932,3.20134557,3671.7,3671.5,0.136]
[1754532349626,3.65924557,3671.7,3671.5,0.136]
[1754532349827,0.4778,3671.6,3671.5,0.136]
[1754532350235,3.20140823,3671.6,3671.5,0.136]
[1754532350406,2.7237566,3671.4,3671.3,0.002]
[1754532350933,3.6470566,3671.4,3671.3,0.002]
[1754532358011,3.2091566,3671.4,3671.3,0.002]
[1754532358432,3.6470566,3671.4,3671.3,0.002]
[1754532360854,7.9380566,3671.4,3671.3,0.002]
[1754532361916,5.2133,3671.4,3671.3,0.002]
[1754532362121,4.7754,3671.4,3671.3,0.002]
[1754532362547,7.4991566,3671.4,3671.3,0.002]
[1754532362934,0.136,3671.7,3671.3,0.002]
[1754532363195,7.18,3672.2,3671.3,0.9033]
[1754532363486,4.29,3672.0,3671.4,0.9013]
[1754532363697,4.29,3672.0,3671.4,0.4286]
[1754532363978,4.29,3672.0,3671.5,0.4727]
[1754532364189,7.93662933,3672.0,3671.5,0.4727]
[1754532364340,7.93662933,3672.0,3671.3,0.002]
[1754532364341,2.72353405,3671.7,3671.3,0.002]
[1754532364538,0.9233,3671.9,3671.3,0.002]
[1754532364539,4.29,3671.8,3671.3,0.002]
[1754532364762,0.9233,3671.6,3671.3,0.002]
[1754532365279,0.4854,3671.6,3671.3,0.002]
[1754532365858,3.1613797,3671.8,3671.3,0.002]
[1754532366218,4.289,3671.7,3671.3,0.002]
[1754532366348,4.289,3671.7,3671.3,0.5019383]
[1754532366555,2.7232452,3672.1,3671.4,0.4286]
[1754532366734,4.289,3672.0,3671.5,0.4727]
[1754532367170,0.4854,3671.9,3671.4,0.36292265]
[1754532367480,2.72359233,3671.7,3671.3,0.002]
[1754532367652,7.93577466,3671.8,3671.3,0.002]
[1754532367972,0.9233,3671.6,3671.3,0.002]
[1754532368277,2.72368241,3671.5,3671.3,0.002]
[1754532368481,3.64698241,3671.5,3671.3,0.002]
[1754532368782,0.4854,3671.4,3671.3,0.002]
[1754532370637,0.9233,3671.4,3671.3,0.002]
[1754532370838,0.4854,3671.4,3671.3,0.002]
[1754532371281,0.9233,3671.4,3671.3,0.002]
[1754532371968,0.4854,3671.4,3671.3,0.002]
[1754532372375,3.64684806,3671.7,3671.3,0.002]
[1754532372682,7.93384806,3671.7,3671.3,0.002]
[1754532373076,0.4854,3671.6,3671.3,0.138]
[1754532373276,3.64691269,3671.6,3671.3,0.138]
[1754532373480,7.44851269,3671.6,3671.3,0.138]
[1754532373777,0.4854,3671.5,3671.3,0.138]
[1754532374152,0.9233,3671.5,3671.3,0.138]
[1754532374982,4.287,3671.6,3671.3,0.138]
[1754532375284,0.4854,3671.5,3671.3,0.138]
[1754532375484,0.4854,3671.5,3671.3,0.002]
[1754532375647,0.4854,3671.4,3671.3,0.002]
[1754532376364,3.6470566,3671.4,3671.3,0.138]
[1754532376576,3.6470566,3671.4,3671.3,0.002]
[1754532377998,0.9233,3671.4,3671.3,0.002]
[1754532382526,3.18822569,3671.6,3671.3,0.002]
[1754532382657,2.7236895,3671.5,3671.3,0.002]
[1754532382862,3.6275895,3671.5,3671.3,0.002]
[1754532383160,0.9039,3671.4,3671.3,0.002]
[1754532385197,3.6276566,3671.4,3671.3,0.002]
[1754532385868,3.1630566,3671.4,3671.3,0.002]
[1754532386396,3.6276566,3671.4,3671.3,0.002]
[1754532388399,16.1744718,3671.4,3671.3,0.002]
[1754532388701,19.3104718,3671.4,3671.3,0.002]
[1754532391216,19.3104718,3671.4,3670.9,0.002]
[1754532391217,5.72405339,3671.0,3670.9,0.002]
[1754532391392,20.98313059,3671.0,3670.9,0.002]
[1754532391597,6.2742018,3670.8,3670.7,0.002]
[1754532391814,10.6922018,3670.8,3670.7,0.002]
[1754532392017,11.5961018,3670.8,3670.7,0.002]
[1754532392205,6.7641018,3670.8,3670.7,0.002]
[1754532392405,4.418,3670.8,3670.7,0.002]
[1754532392612,7.00619567,3670.9,3670.7,0.002]
[1754532392795,14.055179,3670.8,3670.7,0.002]
[1754532393000,3.7641018,3670.8,3670.7,0.002]
[1754532393318,18.473179,3670.8,3670.7,0.002]
[1754532393616,2.8602018,3670.8,3670.7,0.002]
[1754532393829,0.136,3670.8,3670.7,0.002]
[1754532393989,4.418,3670.8,3670.7,0.002]
[1754532394599,2.72376013,3671.4,3670.7,0.4536]
[1754532394811,3.0,3671.2,3670.7,3.77566033]
[1754532394982,0.136,3671.4,3670.8,3.63759916]
[1754532395520,3.136,3671.4,3670.8,3.63759916]
[1754532395684,4.282,3671.3,3670.8,0.9134]
[1754532395883,4.282,3671.3,3670.9,0.4618]
[1754532396109,7.00583498,3671.3,3670.9,0.4618]
[1754532396785,0.136,3671.4,3670.9,0.4618]
[1754532397124,4.281,3671.3,3671.1,0.136]
[1754532399903,4.281,3671.3,3670.8,2.7241845]
[1754532400112,0.9039,3671.2,3670.7,2.72626451]
[1754532400308,0.9039,3671.2,3670.7,3.18806451]
[1754532400506,0.4646,3671.2,3670.8,2.72419512]
[1754532400725,0.136,3671.6,3671.0,0.136]
[1754532400926,4.28,3671.5,3671.1,0.4618]
[1754532401401,4.7446,3671.5,3671.0,0.136]
[1754532401601,0.4646,3671.4,3671.0,0.136]
[1754532402726,0.4646,3671.4,3671.0,2.86003849]
[1754532403025,4.7193,3671.5,3671.0,3.32183849]
[1754532403326,0.4656,3672.1,3671.0,0.78596176]
[1754532403498,4.28,3672.0,3671.1,0.9134]
[1754532403690,4.28,3672.0,3671.5,2.72362734]
[1754532403918,4.28,3672.0,3671.5,3.18542734]
[1754532404225,4.7193,3672.0,3671.3,0.4516]
[1754532404396,4.7193,3672.0,3671.2,0.4618]
[1754532404397,0.4646,3671.9,3671.2,0.4618]
[1754532404728,0.4646,3671.9,3671.3,2.72381165]
[1754532405294,0.4393,3671.8,3671.3,2.72381165]
[1754532405496,0.9039,3671.7,3671.2,2.7238877]
[1754532405741,7.00232329,3672.0,3671.3,2.72381753]
[1754532405742,0.9039,3671.6,3671.3,2.72381753]
[1754532405941,5.1829,3671.9,3671.3,2.72381753]
[1754532406096,5.1829,3671.9,3671.4,2.72373961]
[1754532406495,0.001,3672.1,3671.5,2.72366243]
[1754532406726,4.279,3672.0,3671.5,3.63706243]
[1754532407033,4.279,3672.0,3671.8,2.72342173]
[1754532407391,0.001,3672.1,3671.9,3.18518546]
[1754532409010,0.001,3672.1,3671.5,0.36370624]
[1754532409210,0.4646,3672.0,3671.5,3.54917363]
[1754532409528,0.001,3672.1,3670.9,0.4618]
[1754532409853,0.9039,3671.9,3671.2,4.278]
[1754532409999,0.9039,3671.9,3671.5,2.72361571]
[1754532410393,0.4393,3671.9,3671.6,2.72360281]
[1754532410614,0.9078,3671.9,3671.4,2.72373543]
[1754532410915,0.9078,3671.9,3671.5,2.7236721]
[1754532411440,0.4685,3671.8,3671.4,2.72374567]
[1754532411730,0.4685,3671.7,3671.3,2.72381396]
[1754532413397,0.4685,3671.7,3671.5,0.136]
[1754532415071,0.9275,3671.6,3671.5,0.136]
[1754532415247,0.4685,3671.6,3671.5,0.136]
[1754532415540,0.459,3671.9,3671.6,2.72360823]
[1754532415745,0.6045,3672.0,3671.6,2.72360823]
[1754532416506,0.001,3672.1,3671.7,0.4724]
[1754532416724,0.001,3672.1,3671.8,3.3318533]
[1754532417152,0.001,3672.1,3671.9,0.4724]
[1754532417564,0.001,3672.1,3672.0,0.4724]
[1754532417750,0.001,3672.1,3672.0,3.78821154]
[1754532418457,0.001,3672.1,3672.0,4.43937573]
[1754532420458,0.001,3672.1,3672.0,2.85931154]
[1754532421136,0.001,3672.1,3672.0,3.33171154]
[1754532421843,0.001,3672.1,3672.0,3.78821154]
[1754532422163,0.001,3672.1,3672.0,8.06221154]
[1754532424556,1e-08,3672.1,3672.0,8.06221154]
[1754532424756,1e-08,3672.1,3672.0,11.61221154]
[1754532425151,1e-08,3672.1,3672.0,11.47621154]
[1754532425366,1e-08,3672.1,3672.0,11.61221154]
[1754532425566,1e-08,3672.1,3672.0,7.33821154]
[1754532425859,1e-08,3672.1,3672.0,11.61121154]
[1754532426270,1e-08,3672.1,3672.0,11.06121154]
[1754532426711,1e-08,3672.1,3672.0,11.61121154]
[1754532427216,1e-08,3672.1,3672.0,11.47521154]
[1754532427376,1e-08,3672.1,3672.0,11.61121154]
[1754532427977,0.001,3672.5,3672.4,3.27301492]
[1754532427978,1e-08,3672.5,3672.4,3.27301492]
[1754532428203,1e-08,3672.5,3672.4,21.87170488]
[1754532428513,1e-08,3672.5,3672.4,6.75862768]
[1754532428695,1e-08,3672.5,3672.4,11.95852768]
[1754532429403,1e-08,3672.5,3672.4,12.50852768]
[1754532431003,1e-08,3672.7,3672.5,6.27294077]
[1754532431209,0.001,3673.4,3672.8,0.55]
[1754532431518,0.001,3673.4,3672.9,7.67964423]
[1754532431684,0.001,3673.4,3672.9,8.60854423]
[1754532431881,0.001,3673.4,3672.9,7.12864423]
[1754532431882,0.4695,3673.3,3672.9,7.12864423]
[1754532432082,0.001,3673.3,3672.9,7.12864423]
[1754532432379,0.459,3673.2,3672.9,7.12864423]
[1754532432583,0.001,3673.3,3672.9,7.12864423]
[1754532432818,0.001,3673.3,3672.9,8.60754423]
[1754532432986,0.001,3673.3,3672.9,9.50715699]
[1754532433181,1e-08,3673.4,3673.3,2.72234775]
[1754532433382,1e-08,3673.4,3673.3,20.58264842]
[1754532433617,1e-08,3673.4,3673.3,20.55542495]
[1754532433818,1e-08,3673.4,3673.3,11.05724775]
[1754532434011,1e-08,3673.4,3673.3,11.10962717]
[1754532434201,1e-08,3673.4,3673.3,11.65962717]
[1754532434527,1e-08,3673.4,3673.3,22.54320437]
[1754532435278,1e-08,3673.7,3673.6,6.27212543]
[1754532435477,1e-08,3673.7,3673.6,20.96820263]
[1754532435717,1e-08,3673.7,3673.6,22.93271539]
[1754532435916,1e-08,3673.7,3673.6,22.00381539]
[1754532436090,1e-08,3673.7,3673.6,12.04913819]
[1754532436417,1e-08,3673.7,3673.6,22.47621539]
[1754532436620,1e-08,3673.7,3673.6,22.93271539]
[1754532442118,1e-08,3673.7,3673.6,22.94231539]
[1754532443956,1e-08,3673.9,3673.8,3.27197724]
[1754532444096,1e-08,3673.9,3673.8,11.07407643]
[1754532444291,1e-08,3673.9,3673.8,12.12135666]
[1754532445935,1e-08,3673.9,3673.8,12.23038466]
[1754532446331,0.001,3674.4,3674.3,16.69868403]
[1754532446332,1e-08,3674.4,3674.3,16.69868403]
[1754532446493,1e-08,3674.4,3674.3,20.96368403]
[1754532446689,1e-08,3674.4,3674.3,22.49289679]
[1754532447446,0.001,3674.7,3674.6,13.14846184]
[1754532447760,0.001,3674.7,3674.6,17.54946184]
[1754532448431,0.9322,3674.7,3674.6,2.85738464]
[1754532448734,0.9322,3674.7,3674.6,7.12138464]
[1754532452133,0.9322,3674.7,3674.6,10.12138464]
[1754532453057,0.001,3674.7,3674.6,10.12138464]
[1754532453269,0.4833,3674.7,3674.6,10.12138464]
[1754532453543,0.9322,3674.7,3674.6,10.12138464]
[1754532453903,0.001,3674.7,3674.6,10.12138464]
[1754532454341,0.9322,3674.7,3674.6,10.11938464]
[1754532456217,0.001,3674.7,3674.6,10.11938464]
[1754532456843,0.001,3674.7,3674.6,20.90406184]
[1754532457143,0.001,3674.7,3674.6,21.04006184]
[1754532457453,0.001,3674.7,3674.6,10.11938464]
[1754532460362,0.001,3674.7,3674.6,10.61298464]
[1754532460658,0.001,3674.7,3674.6,10.11938464]
[1754532461458,0.4823,3675.7,3675.4,2.72079229]
[1754532461662,2.96943433,3676.6,3675.4,9.98079229]
[1754532461835,0.4833,3675.5,3675.4,9.98079229]
[1754532462342,0.001,3675.5,3675.4,9.98079229]
[1754532462537,0.2495,3676.6,3675.8,2.72049621]
[1754532462939,9.4280772,3676.5,3675.9,5.7203911]
[1754532463258,9.4280772,3676.5,3676.0,4.26]
[1754532463463,0.9312,3676.4,3676.0,6.98032501]
[1754532463669,0.9312,3676.3,3676.0,6.98032501]
[1754532463833,0.9312,3676.2,3676.0,6.98032501]
[1754532464032,0.9312,3676.2,3676.1,2.7202742]
[1754532464368,9.4280772,3676.5,3676.0,4.26]
[1754532464369,0.9312,3676.1,3676.0,4.26]
[1754532464557,0.9312,3676.1,3676.0,6.98030436]
[1754532465162,0.2495,3676.6,3676.0,6.98030436]
[1754532465331,0.9312,3676.5,3676.0,6.98030436]
[1754532465644,0.9312,3676.4,3676.2,2.72016238]
[1754532465842,0.2495,3676.6,3676.3,4.259]
[1754532466358,0.4823,3676.5,3676.3,4.259]
[1754532466531,0.4489,3676.4,3676.3,4.259]
[1754532466937,0.9312,3676.4,3676.3,4.259]
[1754532467354,0.9312,3676.4,3676.3,6.97912621]
[1754532468469,0.7318,3676.6,3676.5,2.71997824]
[1754532468686,0.7318,3676.6,3676.5,6.97797824]
[1754532468851,0.2495,3676.6,3676.5,6.97797824]
[1754532469174,0.19998114,3678.7,3676.6,2.71990425]
[1754532469351,0.19998114,3678.7,3677.2,2.71946045]
[1754532469352,0.4823,3677.3,3677.2,2.71946045]
[1754532469552,0.9312,3677.3,3677.2,6.97746045]
[1754532470565,0.4956,3678.0,3677.7,2.7190861]
[1754532470770,1.33356,3677.9,3677.7,2.7190861]
[1754532470940,0.39396,3677.9,3677.7,2.7190861]
[1754532471138,0.9396,3677.8,3677.7,2.7190861]
[1754532471333,0.9396,3677.8,3677.6,4.258]
[1754532471584,0.39396,3677.9,3677.8,2.7190168]
[1754532471881,0.39396,3677.9,3677.6,4.258]
[1754532472175,0.9396,3677.8,3677.6,4.258]
[1754532472334,0.39396,3677.9,3677.6,4.258]
[1754532472537,2.03530372,3677.8,3677.6,4.258]
[1754532472875,0.9396,3677.7,3677.6,4.258]
[1754532473475,0.4956,3677.7,3677.6,6.97716467]
[1754532473639,0.4956,3678.0,3677.8,2.71900536]
[1754532473843,0.4956,3677.9,3677.8,6.97500536]
[1754532474063,0.9396,3677.9,3677.8,6.97500536]
[1754532475377,0.4956,3678.2,3677.9,2.71889664]
[1754532475575,0.9396,3678.1,3678.0,4.256]
[1754532476386,0.9396,3678.1,3678.0,4.392]
[1754532476672,0.9396,3678.1,3678.0,4.256]
[1754532477572,0.9396,3678.1,3677.7,4.255]
[1754532477740,3.12632563,3678.2,3677.7,4.255]
[1754532477741,2.71902928,3677.8,3677.7,4.255]
[1754532477941,5.06719993,3677.8,3677.7,4.255]
[1754532478261,1.40857065,3677.8,3677.5,4.255]
[1754532478570,13.14603426,3677.9,3677.6,0.136]
[1754532478775,13.14603426,3677.9,3677.7,4.255]
[1754532478776,0.136,3677.9,3677.7,4.255]
[1754532479172,0.9396,3677.8,3677.7,4.255]
[1754532479341,0.136,3677.9,3677.4,0.136]
[1754532479342,0.136,3677.9,3677.5,4.255]
[1754532479541,0.9396,3677.8,3677.5,4.255]
[1754532479741,0.9396,3677.8,3677.6,2.71916258]
[1754532479947,0.9396,3677.8,3677.7,4.254]
[1754532480276,0.4956,3678.2,3677.7,7.10909073]
[1754532480455,0.4956,3678.1,3677.7,6.97308242]
[1754532480654,0.4956,3678.1,3677.7,4.254]
[1754532480655,0.9396,3678.1,3677.7,4.254]
[1754532480852,0.9396,3678.0,3677.8,4.254]
[1754532481056,0.9396,3677.9,3677.8,4.39]
[1754532482589,0.9396,3677.9,3677.8,0.136]
[1754532482903,0.9396,3677.9,3677.8,4.39]
[1754532483249,0.9396,3677.9,3677.8,4.254]
[1754532483582,3.79454287,3677.9,3677.7,4.253]
[1754532483780,1.31905429,3677.8,3677.6,4.253]
[1754532483985,2.85509073,3677.7,3677.6,4.253]
[1754532484188,2.85509073,3677.7,3677.0,2.71960303]
[1754532484189,1.0756,3677.7,3677.0,0.136]
[1754532484351,12.61202701,3677.3,3676.1,2.72023874]
[1754532484545,5.47273418,3677.2,3676.6,0.136]
[1754532484765,5.47273418,3677.2,3676.7,4.253]
[1754532484960,0.9396,3677.1,3676.7,4.253]
[1754532485289,0.9396,3677.0,3676.7,4.253]
[1754532485460,0.9396,3676.9,3676.6,0.136]
[1754532485666,0.9396,3676.9,3676.7,4.253]
[1754532485872,2.71961577,3677.0,3676.7,4.253]
[1754532486183,0.9396,3676.8,3676.7,4.253]
[1754532487087,0.136,3677.0,3676.7,4.253]
[1754532487289,0.58,3677.0,3676.7,4.253]
[1754532487466,0.4956,3676.9,3676.7,4.253]
[1754532488594,0.9396,3676.9,3676.7,4.253]
[1754532488782,0.4956,3676.8,3676.7,4.253]
[1754532489088,0.136,3677.0,3676.7,4.253]
[1754532489482,0.4956,3676.9,3676.7,4.253]
[1754532489682,0.136,3677.0,3676.5,2.85595836]
[1754532489994,0.136,3677.0,3676.7,4.253]
[1754532490156,0.4956,3677.2,3676.7,4.253]